Cogmind - Beta 10.2 @@@ ROGUE MODE // 2021.06.01 @ 20:00:50 Player: Plexion Result: Destroyed by P-80 Master with Gamma Rifle Performance ------------- Evolutions (7) 3500 Regions Visited (24) 4800 Robots Destroyed (226) 1130 Value Destroyed (9033) 9033 Prototype IDs (61) 1220 Alien Tech Used (1) 200 Bonus (4631) 4631 TOTAL SCORE: 24514 Bonus ------- High Alert Combat Kills 861 Follower Combat Kills 2461 Aligned with FarCom 300 Met Data Miner 300 Destroyed Z-Imprinter 1000 Triggered Deep Caves Wall 500 Exposed GOLEM Chamber 500 Built Enhanced Grunts 300 A7 Reached Mainframe 300 Friendly Fire -1891 Cogmind --------- Core Integrity 0/1300 Matter 250/300 Energy 99/100 System Corruption 18% Temperature Cool (0) Movement Core (50) Location -3/Quarantine Parts ------- > --- POWER (2) -------- (None) > --- PROPULSION (4) --- Assembled Alloy Leg > --- UTILITY (11) ----- Advanced Core Analyzer Armor Integrity Analyzer Hacking Suite Advanced Hacking Suite Advanced Hacking Suite GOLEM Unit > --- WEAPON (4) ------- CR-A16's Behemoth Slayer > --- INVENTORY (4) ---- Stasis Generator Peak State ------------ > --- POWER ------------ Assembled Flux Generator > --- PROPULSION ------- Heavy Siege Treads Heavy Siege Treads > --- UTILITY ---------- Assembled Nanovents Large Storage Unit Large Storage Unit Assembled Biocell Array Makeshift Sensor Array Advanced Core Analyzer Remote Force Field System Mapper Improved System Shield GOLEM Unit > --- WEAPON ----------- Compact HERF Cannon Assembled Focal Cannon Assembled Focal Cannon CR-A16's Behemoth Slayer > --- INVENTORY -------- GOLEM Unit GOLEM Unit GOLEM Unit GOLEM Unit GOLEM Unit GOLEM Unit GOLEM Unit GOLEM Unit [Rating: 160] Favorites ----------- Power Zionite Light DM Reactor Engine Improved Deuterium Engine Power Core Enhanced Nuclear Core Reactor Zionite Light DM Reactor Propulsion Light Treads Treads Light Treads Leg Assembled Alloy Leg Utility Large Storage Unit Device Experimental Heat Sink Storage Large Storage Unit Processor Advanced Signal Interpreter Hackware System Mapper Protection Improved Medium Armor Plating Artifact Stasis Generator Weapon Enhanced Autogun Energy Gun Lightning Gun Energy Cannon Improved EM Pulse Cannon Ballistic Gun Enhanced Autogun Launcher EMP Blaster Slashing Weapon Phasing Sabre Piercing Weapon CR-A16's Behemoth Slayer Build | -11 -10 -10 -9 -9 -9 -8 -8 -7 -7 -7 -7 -6 -6 -6 -6 -6 -6 -5 -5 -5 -5 -4 -3 -3 ------- Run | Scr Mat Min Mat Min Exi Min Mat Fac Low Low Dat Pro Fac Low Low Zio Dee Pro Fac Ext Cet Fac Res Qua Slots Evolved 14 | . . . 2 . . . 2 2 . . . . 2 . . . . . 2 . . 2 2 . Power 1 | . . . . . . . . . . . . . 1 . . . . . . . . . . . Propulsion 2 | . . . . . . . . . . . . . . . . . . . 1 . . 1 . . Utility 9 | . . . 2 . . . 1 2 . . . . 1 . . . . . 1 . . 1 1 . Weapon 2 | . . . . . . . 1 . . . . . . . . . . . . . . . 1 . Parts Attached 294 | 7 12 5 12 2 34 . 12 7 6 8 6 4 37 5 4 4 29 7 13 30 7 15 20 8 Power 25 | 1 1 2 . . 4 . . 1 . . . . 6 . 1 . 2 . 1 . 2 2 2 . Engine 9 | 1 1 2 . . . . . 1 . . . . 3 . 1 . . . . . . . . . Core 8 | . . . . . 3 . . . . . . . 2 . . . 1 . 1 . . 1 . . Reactor 8 | . . . . . 1 . . . . . . . 1 . . . 1 . . . 2 1 2 . Propulsion 42 | 2 6 3 2 2 4 . 2 . 1 1 . 1 2 1 . . 2 . 3 5 2 1 2 . Treads 41 | 2 6 2 2 2 4 . 2 . 1 1 . 1 2 1 . . 2 . 3 5 2 1 2 . Leg 1 | . . 1 . . . . . . . . . . . . . . . . . . . . . . Wheel . | . . . . . . . . . . . . . . . . . . . . . . . . . Hover . | . . . . . . . . . . . . . . . . . . . . . . . . . Flight . | . . . . . . . . . . . . . . . . . . . . . . . . . Utility 110 | 1 3 . 4 . 15 . 2 5 3 1 5 . 8 1 . 2 17 1 3 18 2 7 4 8 Device 20 | . . . 1 . 4 . . . . . 1 . . . . . 3 1 . 6 . . 2 2 Storage 26 | 1 2 . 1 . 7 . . . 1 . 2 . . . . . 5 . . 5 . 1 1 . Processor 10 | . 1 . . . 1 . . 3 . . 1 . . . . . . . . . . 1 1 2 Hackware 7 | . . . . . . . . . . . . . . . . . . . 1 2 . 1 . 3 Protection 46 | . . . 2 . 3 . 2 2 2 1 1 . 8 1 . 2 9 . 2 5 2 4 . . Artifact 1 | . . . . . . . . . . . . . . . . . . . . . . . . 1 Weapon 117 | 3 2 . 6 . 11 . 8 1 2 6 1 3 21 3 3 2 8 6 6 7 1 5 12 . Energy Gun 3 | 1 . . . . 2 . . . . . . . . . . . . . . . . . . . Energy Cannon 5 | . . . . . . . . . . . . . 1 . . . 2 . . 1 . . 1 . Ballistic Gun 73 | 2 2 . 5 . 8 . 6 1 1 3 . 2 13 2 1 1 3 3 4 3 1 5 7 . Ballistic Cannon . | . . . . . . . . . . . . . . . . . . . . . . . . . Launcher 18 | . . . 1 . 1 . 2 . 1 2 1 1 2 . . . 2 2 . . . . 3 . Special Weapon . | . . . . . . . . . . . . . . . . . . . . . . . . . Impact Weapon . | . . . . . . . . . . . . . . . . . . . . . . . . . Slashing Weapon 13 | . . . . . . . . . . 1 . . 5 1 2 1 . . 2 1 . . . . Piercing Weapon 5 | . . . . . . . . . . . . . . . . . 1 1 . 2 . . 1 . Special Melee Weapon . | . . . . . . . . . . . . . . . . . . . . . . . . . Unidentified Prototypes 20 | . . . 2 . 5 . 1 . . . . . 2 . . . 5 . . 1 3 . . 1 Parts Lost 76 | . . 3 2 . 7 . . . . 5 . 3 3 4 . . 6 . 3 10 1 5 9 15 Power 10 | . . 1 . . 1 . . . . . . . 2 1 . . 1 . . . . 2 1 1 Propulsion 19 | . . 2 1 . 2 . . . . 1 . 1 . 1 . . 2 . 1 4 . 1 1 2 Utility 26 | . . . 1 . 1 . . . . 2 . . 1 1 . . 2 . . 4 1 1 3 9 Weapon 21 | . . . . . 3 . . . . 2 . 2 . 1 . . 1 . 2 2 . 1 4 3 Highest Loss Streak 15 | . . 2 1 . 7 . . . . 3 . 2 1 4 . . 4 . 2 7 1 3 7 15 Average Slot Usage (%) 91 | . 96 99 94 100 99 100 99 97 93 89 90 99 95 97 97 97 83 86 83 89 94 86 74 55 Engine 4 | . 13 14 11 11 6 . . 3 7 7 7 7 5 4 3 6 3 . . . . . . . Core 2 | . . . . . 3 11 9 3 . . . . . 6 6 6 1 6 5 5 5 5 1 . Reactor 2 | . . . . . . . . . . . . . 4 . . . 5 6 5 5 5 4 3 2 Treads 15 | . 27 22 22 22 22 22 18 15 15 15 15 14 13 12 13 13 13 13 13 16 12 13 7 4 Device 5 | . . . 1 . 2 11 9 7 7 7 7 7 5 . . . 3 2 3 7 11 10 15 13 Storage 21 | . 17 28 27 33 28 33 27 23 17 15 18 23 20 20 20 20 17 26 23 26 23 16 11 9 Processor 5 | . 8 . . . 3 . . 4 7 7 10 15 13 13 13 13 7 6 5 1 . . 3 1 Hackware 1 | . . . . . . . . . . . . . . . . . . . 5 5 5 7 9 7 Protection 8 | . . . 10 11 8 . 8 15 14 13 7 7 11 19 20 17 8 3 1 1 9 9 . . Ballistic Gun 15 | . 27 28 19 11 15 22 27 23 22 16 15 22 19 19 15 13 12 19 13 8 5 11 7 . Launcher 1 | . . . 2 11 6 . . . . 4 1 . . . . . . . . . . . . . Naked Turns . | . . . . . . . . . . . . . . . . . . . . . . . . . Heaviest Build 237 | 11 39 43 57 57 82 75 89 94 147 134 119 78 104 95 102 112 234 231 232 237 117 182 143 132 Greatest Support 140 | 40 40 40 40 40 40 40 40 40 43 43 43 43 60 60 50 50 50 40 66 90 110 137 140 140 Greatest Overweight (x) 33 | 1 2 1 1 1 2 1 2 2 3 3 2 3 2 1 2 2 5 5 5 24 1 1 2 33 Average Overweight (x) 1 | . . . 1 1 1 1 1 1 2 2 1 1 1 1 1 2 3 5 4 1 . . . . Largest Inventory Capacity 66 | 6 16 16 20 20 22 22 22 22 42 30 42 22 22 22 22 22 56 56 56 66 26 46 30 16 Average Capacity 27 | 5 8 16 17 20 19 22 22 22 28 30 26 22 22 22 22 22 42 56 56 44 26 30 17 11 Most Carried 56 | 2 8 14 20 20 22 22 22 22 27 28 24 22 22 22 22 22 56 55 56 54 26 31 30 16 Average Carried 24 | 1 4 10 16 19 17 22 21 21 24 26 22 20 21 21 21 21 33 54 54 40 26 28 17 10 Final Capacity 56 | 6 16 16 20 20 22 22 22 22 30 30 22 22 22 22 22 22 56 56 56 26 26 30 16 4 Final Carried 55 | 2 8 14 20 20 22 22 22 22 26 24 22 20 22 20 22 22 55 54 54 26 26 30 16 1 Class Distribution -------------------- 35% | Hauler-Mutant 19% | Hauler-Tank 11% | Mutant 10% | Scavenger-Tank 9% | Scavenger-Mutant 4% | Scavenger-Gunner 3% | Hacker-Golem Dominant Class ---------------- Mutant | -10/Materials Mutant | -10/Mines Hauler-Mutant | -9/Materials Hauler-Mutant | -9/Mines Hauler-Mutant | -9/Exiles Hauler-Mutant | -8/Mines Hauler-Tank | -8/Materials Scavenger-Tank | -7/Factory Hauler-Tank | -7/Lower Caves Hauler-Mutant | -7/Lower Caves Hauler-Mutant | -7/Data Miner Scavenger-Gunner | -6/Proximity Caves Scavenger-Tank | -6/Factory Hauler-Tank | -6/Lower Caves Hauler-Mutant | -6/Lower Caves Hauler-Mutant | -6/Zion Hauler-Mutant | -6/Deep Caves Hauler-Tank | -5/Proximity Caves Hauler-Mutant | -5/Factory Hauler-Mutant | -5/Extension Scavenger-Mutant | -5/Cetus Scavenger-Tank | -4/Factory Hacker-Golem | -3/Research Hacker-Mutant | -3/Quarantine Resources | -11 -10 -10 -9 -9 -9 -8 -8 -7 -7 -7 -7 -6 -6 -6 -6 -6 -6 -5 -5 -5 -5 -4 -3 -3 ----------- Run | Scr Mat Min Mat Min Exi Min Mat Fac Low Low Dat Pro Fac Low Low Zio Dee Pro Fac Ext Cet Fac Res Qua Matter Collected 7640 | 213 245 240 368 28 920 52 663 201 143 240 61 211 769 252 83 53 521 58 316 643 129 696 350 185 Remotely . | . . . . . . . . . . . . . . . . . . . . . . . . . Salvage Created 13554 | . 277 276 701 . 536 . 1228 374 304 581 111 297 1179 283 66 . 2110 211 316 1609 141 1311 762 881 Parts 592 | . 20 13 49 . 66 . 84 19 11 24 5 15 53 16 2 . 25 10 16 47 13 50 22 32 Haulers Intercepted 6 | . . . 2 . . . 2 . . . . . . . . . . . . 2 . . . . Recyclers Shooed 5 | . . . . . . . . . . . . . 3 . . . . . . . . 2 . . Parts Field Recycled . | . . . . . . . . . . . . . . . . . . . . . . . . . Retrieved Matter . | . . . . . . . . . . . . . . . . . . . . . . . . . Parts Self-Destructed 46 | . . . . . . . . . 5 5 . 13 . 17 . . . 6 . . . . . . Prevented 20 | . . . . . . . . . 6 14 . . . . . . . . . . . . . . Kills | -11 -10 -10 -9 -9 -9 -8 -8 -7 -7 -7 -7 -6 -6 -6 -6 -6 -6 -5 -5 -5 -5 -4 -3 -3 ------- Run | Scr Mat Min Mat Min Exi Min Mat Fac Low Low Dat Pro Fac Low Low Zio Dee Pro Fac Ext Cet Fac Res Qua Combat Hostiles Destroyed 199 | . 7 4 17 . 6 . 20 5 5 10 1 6 17 6 1 . 23 10 7 13 2 17 9 13 Melee 36 | . . . . . . . . . . . . . 1 . . . 13 . 3 6 . . 6 7 Guns 107 | . 7 4 11 . 2 . 18 5 1 1 . 3 15 6 1 . 2 1 4 5 1 17 3 . Cannons 8 | . . . . . . . . . . . . . . . . . . 1 . . 1 . . 6 AOE 39 | . . . 6 . 4 . 2 . 3 6 . 3 1 . . . 6 8 . . . . . . Classes Destroyed 25 | . 4 2 2 . 3 . 5 1 1 . . . 1 . 1 . 3 . . 1 . 1 . . Worker 10 | . 1 . . . . . . . . . . . 9 . . . . . . . . . . . Builder 4 | . . . . . . . . . . . . . 1 . . . . . . . . 2 . 1 Tunneler 2 | . . 2 . . . . . . . . . . . . . . . . . . . . . . Hauler 6 | . . . 2 . . . 2 . . . . . . . . . . . . 2 . . . . Recycler 8 | . . 1 . . . . . 1 . . . . 3 . . . . . . 2 . 1 . . Minesweeper 1 | . . . . . . . . . 1 . . . . . . . . . . . . . . . Mechanic 1 | . . . . . . . 1 . . . . . . . . . . . . . . . . . Operator 2 | . . . . . . . 1 . . . . . . . . . . . . 1 . . . . Turret 1 | . . . . . 1 . . . . . . . . . . . . . . . . . . . Watcher 5 | . 1 . . . . . 2 1 . . . . . . . . . . . . . 1 . . Swarmer 35 | . 3 . 5 . . . . . . 1 . 1 7 3 . . . 5 5 . 2 1 . 2 Saboteur 1 | . . . . . . . . . . . . . . . . . . . . . . 1 . . Grunt 74 | . 4 4 10 . . . 12 3 4 6 . 4 . . . . 1 5 . 4 . 11 . 6 Brawler 6 | . . . . . . . 1 . . . . . 1 2 . . . . . . . 1 . 1 Duelist 5 | . . . . . . . 1 . . 1 . . 1 . . . . . . . . 2 . . Sentry 17 | . . . 2 . . . 5 1 . 1 . 1 1 1 . . . . 2 2 . . 1 . Hunter 8 | . . . . . . . 1 . . 1 . . 3 . . . . . . . . . 2 1 Programmer 13 | . . . . . . . . 1 1 . . . 4 . . . . . . 1 . 1 2 3 Behemoth 2 | . . . . . . . . . . . . . . . . . . . . 2 . . . . Enhanced Grunt 1 | . . . . . . . . . . . 1 . . . . . . . . . . . . . Zionite 8 | . . . . . 8 . . . . . . . . . . . . . . . . . . . Z-Light 4 | . . . . . . . . . . . . . . . . . 4 . . . . . . . Assembler 2 | . . . . . . . . . . . . . . . . . 2 . . . . . . . Assembled 8 | . . . . . 5 . . . . . . . . . . . 3 . . . . . . . Golem 23 | . . . . . . . . . . . . . . . . . 15 . . 4 . . 4 . Thug 1 | . . . . . . . . . . . . . . . . . 1 . . . . . . . Savage 1 | . . . . . . . . . . . . . . . . . . . . 1 . . . . Mutant 1 | . . . . . . . . . . . . . . . 1 . . . . . . . . . Best Kill Streak 10 | . 3 3 4 . 4 . 8 3 4 4 2 3 9 5 1 . 3 5 2 4 2 10 5 7 Combat Bots Only 8 | . 3 2 4 . 4 . 7 3 4 4 1 3 3 5 1 . 3 5 2 4 2 8 5 7 Max Kills in Single Turn 9 | . 1 1 2 . 2 . 1 1 1 1 1 2 9 1 1 . 2 3 1 2 1 2 1 1 Gunslinging 1 | . . . . . . . . . . . . . 1 . . . . . . . . 1 . . Exploded 3 | . . . 2 . 2 . 1 . 1 1 . 2 1 . . . 2 3 . . . . . . Melee 1 | . . . . . . . . . . . . . 1 . . . 1 . 1 1 . . 1 1 Uniques/NPCs Destroyed 7 | . . . . . 4 . . . . . 1 . . . . . 1 . . . 1 . . . 8R-AWN (-9/Exiles) EX-HEX (-9/Exiles) EX-BIN (-9/Exiles) EX-DEC (-9/Exiles) Data Miner (-7/Data Miner) Z-Imprinter (-6/Deep Caves) A7 (-5/Cetus) Combat | -11 -10 -10 -9 -9 -9 -8 -8 -7 -7 -7 -7 -6 -6 -6 -6 -6 -6 -5 -5 -5 -5 -4 -3 -3 -------- Run | Scr Mat Min Mat Min Exi Min Mat Fac Low Low Dat Pro Fac Low Low Zio Dee Pro Fac Ext Cet Fac Res Qua Damage Taken 20677 | . 221 211 605 . 1208 38 542 394 152 898 45 377 1374 1360 35 . 1686 458 984 1832 146 2757 2313 3041 Core 2489 | . 51 12 11 . 148 20 92 . 15 67 . 26 107 85 23 . 67 101 17 126 16 199 262 1044 Absorbed by Shields 439 | . . . . . . . . . . . . . . . . . . . . 86 125 . 157 71 Reduced by Siege Mode 11 | . . . . . . . . . . . . . . . . . . . . . . 11 . . Core Remaining (%) 77 | 100 . 74 . . . 55 83 . . . . 84 . . . . . 54 . . 84 82 . . Volleys Fired 572 | . 29 17 39 2 102 . 51 15 9 22 1 13 35 15 2 . 61 10 14 22 13 51 32 17 Largest 4 | . 2 2 2 1 2 . 3 3 3 3 1 3 3 3 2 . 3 3 3 2 2 3 4 2 Hottest 149 | . 40 40 50 33 80 . 75 75 75 75 36 83 86 86 56 . 132 129 90 97 104 100 149 50 Shots Fired 1224 | . 58 34 68 2 197 . 139 45 19 38 1 33 101 38 4 . 79 16 42 44 26 143 65 32 Gun 1066 | . 58 34 58 . 191 . 136 45 15 24 . 30 100 38 4 . 26 8 42 39 13 143 62 . Cannon 95 | . . . . . . . . . . . . . . . . . 41 1 . 5 13 . 3 32 Launcher 63 | . . . 10 2 6 . 3 . 4 14 1 3 1 . . . 12 7 . . . . . . Special . | . . . . . . . . . . . . . . . . . . . . . . . . . Kinetic 1057 | . 58 34 58 . 182 . 136 45 15 24 . 30 100 38 4 . 26 8 42 39 13 143 62 . Thermal 34 | . . . . . . . . . . . . . . . . . . . . . . . 2 32 Explosive 28 | . . . . . 6 . . . . . . 2 1 . . . 12 7 . . . . . . Electromagnetic 105 | . . . 10 2 9 . 3 . 4 14 1 1 . . . . 41 1 . 5 13 . 1 . Robot Hit Streak 42 | . 7 8 13 . 18 . 26 11 9 10 11 14 17 11 3 . 8 7 10 8 13 42 7 22 Robot Miss Streak 6 | . 6 3 2 . 5 . 3 2 1 2 . 2 4 1 1 . 6 1 4 2 3 4 4 1 Penetration Max 1 | . . . . . . . . . . . . . 1 1 . . . . . 1 1 1 1 . Secondary Targets 20 | . 1 . 2 . . . . 1 . . . . 2 3 . . 1 . . . . 9 1 . Max Gunslinging Chain 2 | . 1 . 1 . . . . 1 . . . . 1 1 . . 1 . . . . 2 1 . Shots Hit Robots 1032 | . 37 25 41 . 123 . 95 28 14 21 2 27 78 33 5 . 142 9 31 68 22 112 54 65 Core Hits 601 | . 15 15 28 . 52 . 47 15 8 18 2 19 68 18 2 . 117 15 12 32 10 55 27 26 Critical Hits 52 | . . . . . 2 . 4 . . . . . 3 2 . . 1 1 3 14 2 8 5 7 Critical Kills 20 | . . . . . . . 1 . . . . . 1 . . . 1 1 1 7 . 3 3 2 Critical Parts Destroyed 28 | . . . . . 2 . 3 . . . . . 2 2 . . . . 2 4 1 5 2 5 Melee Attacks 292 | . . . . . . . . . . . 1 . 12 1 3 3 132 . 16 40 4 . 28 52 Impact . | . . . . . . . . . . . . . . . . . . . . . . . . . Slashing 38 | . . . . . . . . . . . 1 . 12 1 3 3 . . 16 2 . . . . Piercing 254 | . . . . . . . . . . . . . . . . . 132 . . 38 4 . 28 52 Sneak Attacks 17 | . . . . . . . . . . . 1 . 1 . . . . . . 7 4 . . 4 Combat Hostiles 1 | . . . . . . . . . . . . . 1 . . . . . . . . . . . Follow-up Attacks . | . . . . . . . . . . . . . . . . . . . . . . . . . Damage Inflicted 32519 | . 465 342 960 . 2189 . 1892 494 575 1166 127 605 3060 720 116 . 6258 1256 698 2580 799 3632 1530 3055 Guns 14398 | . 463 342 643 . 1836 . 1581 494 188 196 . 353 1813 708 62 . 256 116 387 618 259 3323 760 . Cannons 2699 | . . . . . . . . . . . . . . . . . 721 23 . 155 224 . 82 1494 Explosions 6509 | . . . 317 . 353 . 311 . 387 970 21 252 1132 . . . 1340 1117 . . . 309 . . Melee 8867 | . . . . . . . . . . . 106 . 93 . 54 . 3941 . 301 1807 316 . 688 1561 Ramming 46 | . 2 . . . . . . . . . . . 22 12 . . . . 10 . . . . . Kinetic 14389 | . 463 342 643 . 1827 . 1581 494 188 196 . 353 1813 708 62 . 256 116 387 618 259 3323 760 . Thermal 3288 | . . . 21 . . . 66 . 42 77 . . 1132 . . . 65 . . . . 309 82 1494 Explosive 2926 | . . . . . 353 . . . . . . 181 . . . . 1275 1117 . . . . . . Electromagnetic 3003 | . . . 296 . 9 . 245 . 345 893 21 71 . . . . 721 23 . 155 224 . . . Impact . | . . . . . . . . . . . . . . . . . . . . . . . . . Slashing 654 | . . . . . . . . . . . 106 . 93 . 54 . . . 301 100 . . . . Piercing 8213 | . . . . . . . . . . . . . . . . . 3941 . . 1707 316 . 688 1561 Highest Corruption 17 | . . . . . . . . 1 1 3 3 3 3 4 4 4 . . . 1 1 1 9 17 Average Corruption 2 | . . . . . . . . 1 1 2 3 3 1 3 4 4 . . . 1 1 1 5 11 Corruption Purged . | . . . . . . . . . . . . . . . . . . . . . . . . . Effects 157 | . . . . . . . . 4 3 18 4 9 11 12 14 4 . . . 11 3 1 23 40 Message Errors 42 | . . . . . . . . 2 . 6 . 2 3 3 4 . . . . 5 1 . 6 10 Matter Fused 22 | . . . . . . . . . . 5 . 3 1 2 3 3 . . . . . . 3 2 Heat Flow Errors 13 | . . . . . . . . . . 1 2 1 2 . 3 . . . . . . . 2 2 Energy Discharges 25 | . . . . . . . . 1 . 3 . 2 4 2 2 . . . . 5 2 . 3 1 Parts Rejected 1 | . . . . . . . . . . . . . . . . . . . . . . . 1 . Data Loss (minor) 21 | . . . . . . . . . 3 3 2 1 1 2 1 1 . . . 1 . . 3 3 Data Loss (major) 3 | . . . . . . . . . . . . . . . . . . . . . . . . 3 Misfires 1 | . . . . . . . . . . . . . . . . . . . . . . . 1 . Alerts 1 | . . . . . . . . . . . . . . . . . . . . . . . . 1 Misdirections 6 | . . . . . . . . . . . . . . . . . . . . . . . . 6 Targeting Errors 21 | . . . . . . . . 1 . . . . . 2 1 . . . . . . 1 4 12 Weapon Failures 1 | . . . . . . . . . . . . . . 1 . . . . . . . . . . Overload Shots . | . . . . . . . . . . . . . . . . . . . . . . . . . Overflow Damage 901 | . . . . . . . . . 4 56 . . 224 . . . 213 28 2 112 19 10 7 226 Projectiles 187 | . . . . . . . . . . . . . . . . . . . . 18 19 . 7 143 Explosions 414 | . . . . . . . . . 4 56 . . 224 . . . 92 28 . . . 10 . . Melee 300 | . . . . . . . . . . . . . . . . . 121 . 2 94 . . . 83 Knockbacks . | . . . . . . . . . . . . . . . . . . . . . . . . . Impact . | . . . . . . . . . . . . . . . . . . . . . . . . . Kinetic . | . . . . . . . . . . . . . . . . . . . . . . . . . Secondary . | . . . . . . . . . . . . . . . . . . . . . . . . . Self-Inflicted Damage 352 | . . . 13 . . . . . . 72 . . 117 12 . . 21 117 . . . . . . Shots 11 | . . . 1 . . . . . . 4 . . 2 . . . 1 3 . . . . . . Rammed 4 | . 1 . . . . . . . . . . . . . . . . . 2 . . . . 1 Targets Rammed 5 | . 1 . . . . . . . . . . . 1 . . . . . 2 . . . . 1 Kicked . | . . . . . . . . . . . . . . . . . . . . . . . . . Crushed 1 | . . . . . . . . . . . . . 1 . . . . . . . . . . . Highest Temperature 420 | . 2 2 82 . 330 . 12 40 . 86 204 89 230 146 204 . 420 316 306 2 . 2 273 107 Average Temperature 102 | . 2 2 17 . 134 . 4 25 . 43 92 65 71 45 100 . 130 130 123 2 . 2 91 65 Received Heat Transfer 2882 | . 93 117 222 . . 18 243 93 45 114 6 141 54 81 20 . 357 78 27 424 . 465 67 217 Effects 11 | . . . . . 2 . . . . . . . . . . . 6 . 3 . . . . . Shutdowns 1 | . . . . . . . . . . . . . . . . . 1 . . . . . . . Interference 10 | . . . . . 2 . . . . . . . . . . . 5 . 3 . . . . . Siege Activations 1 | . . . . . . . . . . . . . . . . . . . . . . 1 . . Total Turns 4 | . . . . . . . . . . . . . . . . . . . . . . 4 . . Longest Duration 4 | . . . . . . . . . . . . . . . . . . . . . . 4 . . Robots Corrupted 9 | . . . . . . . . . 1 3 1 . . . . . 4 . . . . . . . Combat Hostiles 7 | . . . . . . . . . 1 3 1 . . . . . 2 . . . . . . . Parts Fried 35 | . . . . . . . . . 3 6 2 . . . . . 24 . . . . . . . Impact Corruptions . | . . . . . . . . . . . . . . . . . . . . . . . . . Robots Melted . | . . . . . . . . . . . . . . . . . . . . . . . . . Combat Hostiles . | . . . . . . . . . . . . . . . . . . . . . . . . . Parts Melted 2 | . . . . . . . . . . . . . 2 . . . . . . . . . . . Heat Transferred 2400 | . . . 50 . . . 150 . 50 100 . . 750 . . . 100 . . . . 450 50 700 Parts Sabotaged 3 | . . . . . . . . . . . . . . . . . . . . . . 3 . . Parts Stolen . | . . . . . . . . . . . . . . . . . . . . . . . . . Parts Stripped . | . . . . . . . . . . . . . . . . . . . . . . . . . Power Chain Reactions 10 | . . . 3 . . . 3 . 1 2 . . . . . . 1 . . . . . . . Missiles Intercepted . | . . . . . . . . . . . . . . . . . . . . . . . . . Alert | -11 -10 -10 -9 -9 -9 -8 -8 -7 -7 -7 -7 -6 -6 -6 -6 -6 -6 -5 -5 -5 -5 -4 -3 -3 ------- Run | Scr Mat Min Mat Min Exi Min Mat Fac Low Low Dat Pro Fac Low Low Zio Dee Pro Fac Ext Cet Fac Res Qua Peak Influence 1314 | . 155 155 319 99 . . 452 253 . . . . 398 . . . . . 155 304 410 1314 666 431 Initial 666 | . . 60 1 99 . . . 172 . . . . 44 . . . . . 12 75 5 117 666 159 Average 186 | . 57 83 162 70 . . 232 147 . . . . 116 . . . . . 66 77 220 700 433 226 Maximum Alert Level 4 | . . . 1 . . . 2 1 . . . . 1 . . . . . . 1 2 4 2 2 Low Security (%) 67 | 100 100 100 56 100 . 100 45 82 . . . . 72 . . . . . 100 87 51 26 . 34 Level 1 21 | . . . 43 . . . 47 17 . . . . 27 . . . . . . 12 15 4 43 58 Level 2 6 | . . . . . . . 7 . . . . . . . . . . . . . 32 12 56 6 Level 3 2 | . . . . . . . . . . . . . . . . . . . . . . 27 . . Level 4 2 | . . . . . . . . . . . . . . . . . . . . . . 28 . . Level 5 . | . . . . . . . . . . . . . . . . . . . . . . . . . High Security . | . . . . . . . . . . . . . . . . . . . . . . . . . Max Security . | . . . . . . . . . . . . . . . . . . . . . . . . . Squads Dispatched 37 | . 1 . 4 1 . . 3 3 . . . . 3 . . . . . 2 4 . 10 3 3 Investigation 10 | . . . 1 1 . . . 1 . . . . . . . . . . . 2 . 3 2 . Extermination 9 | . . . . . . . . 2 . . . . 3 . . . . . . . . 2 1 1 Reinforcement 15 | . 1 . 3 . . . 3 . . . . . . . . . . . 2 2 . 2 . 2 Assault 3 | . . . . . . . . . . . . . . . . . . . . . . 3 . . Garrison . | . . . . . . . . . . . . . . . . . . . . . . . . . Intercept . | . . . . . . . . . . . . . . . . . . . . . . . . . Construction Impeded 2 | . . . . . . . . . . . . . . . . . . . . . . 2 . . Haulers Reinforced . | . . . . . . . . . . . . . . . . . . . . . . . . . Stealth | -11 -10 -10 -9 -9 -9 -8 -8 -7 -7 -7 -7 -6 -6 -6 -6 -6 -6 -5 -5 -5 -5 -4 -3 -3 --------- Run | Scr Mat Min Mat Min Exi Min Mat Fac Low Low Dat Pro Fac Low Low Zio Dee Pro Fac Ext Cet Fac Res Qua Distress Signals 22 | . 4 . 2 . . . 2 . . . . . . . . . . . . 5 1 3 1 4 Communications Jammed . | . . . . . . . . . . . . . . . . . . . . . . . . . Distress Signals . | . . . . . . . . . . . . . . . . . . . . . . . . . Times Spotted 388 | . 17 5 29 . 29 3 33 8 5 18 1 5 25 7 1 . 29 11 9 38 15 42 15 43 Peak Tracking Total 11 | . 3 2 6 . 9 3 5 3 4 4 2 3 4 7 1 . 5 5 5 5 7 11 6 9 Tactical Retreats 44 | . 2 . 1 . 8 . 1 . . 10 . . 4 . . . 2 . 2 3 1 2 3 5 Traps | -11 -10 -10 -9 -9 -9 -8 -8 -7 -7 -7 -7 -6 -6 -6 -6 -6 -6 -5 -5 -5 -5 -4 -3 -3 ------- Run | Scr Mat Min Mat Min Exi Min Mat Fac Low Low Dat Pro Fac Low Low Zio Dee Pro Fac Ext Cet Fac Res Qua Traps Triggered 20 | . 4 . 1 1 . . . 2 . . . . 1 . . . . . 1 5 . 1 4 . Indirectly 2 | . . . 1 1 . . . . . . . . . . . . . . . . . . . . Trap Hack Attempts . | . . . . . . . . . . . . . . . . . . . . . . . . . Triggered . | . . . . . . . . . . . . . . . . . . . . . . . . . Disarmed . | . . . . . . . . . . . . . . . . . . . . . . . . . Reprogrammed . | . . . . . . . . . . . . . . . . . . . . . . . . . Reused 1 | . . . . . . . . . . . 1 . . . . . . . . . . . . . Traps Extracted . | . . . . . . . . . . . . . . . . . . . . . . . . . Installed 3 | . . . . . . . . . . . 3 . . . . . . . . . . . . . Triggered 1 | . . . . . . . . . 1 . . . . . . . . . . . . . . . Exploded 2 | . . . . . 2 . . . . . . . . . . . . . . . . . . . Machines | -11 -10 -10 -9 -9 -9 -8 -8 -7 -7 -7 -7 -6 -6 -6 -6 -6 -6 -5 -5 -5 -5 -4 -3 -3 ---------- Run | Scr Mat Min Mat Min Exi Min Mat Fac Low Low Dat Pro Fac Low Low Zio Dee Pro Fac Ext Cet Fac Res Qua Machines Disabled 47 | . . . . 1 13 . 1 . . . . . 11 1 1 . 4 . . . 2 12 . 1 Max in Single Turn 7 | . . . . 1 2 . 1 . . . . . 7 1 1 . 1 . . . 1 4 . 1 Garrison Access 4 | . . . . . . . 1 . . . . . 1 . . . . . . . . 1 1 . Machines Sabotaged . | . . . . . . . . . . . . . . . . . . . . . . . . . Garrisons Compromised . | . . . . . . . . . . . . . . . . . . . . . . . . . Overloaded Fab Kills . | . . . . . . . . . . . . . . . . . . . . . . . . . Fab Network Shutdowns . | . . . . . . . . . . . . . . . . . . . . . . . . . Hacking | -11 -10 -10 -9 -9 -9 -8 -8 -7 -7 -7 -7 -6 -6 -6 -6 -6 -6 -5 -5 -5 -5 -4 -3 -3 --------- Run | Scr Mat Min Mat Min Exi Min Mat Fac Low Low Dat Pro Fac Low Low Zio Dee Pro Fac Ext Cet Fac Res Qua Machines Accessed 51 | . 2 . . 2 2 . 4 2 . . 3 . 7 . . 1 . . 1 11 1 4 4 7 Terminals 32 | . 2 . . . . . 2 1 . . . . 4 . . . . . 1 11 1 2 2 6 Fabricators 2 | . . . . . . . . . . . . . . . . . . . . . . 1 1 . Repair Stations . | . . . . . . . . . . . . . . . . . . . . . . . . . Recycling Units . | . . . . . . . . . . . . . . . . . . . . . . . . . Scanalyzers 4 | . . . . . . . 1 . . . . . 2 . . . . . . . . . . 1 Garrison Access 5 | . . . . . . . 1 1 . . . . 1 . . . . . . . . 1 1 . Total Hacks 119 | . 5 . . 2 2 . 11 3 . . 21 . 11 . . 4 . . 5 25 1 7 8 14 Successful 72 | . 1 . . 2 2 . 6 . . . 21 . 6 . . 4 . . 4 12 1 3 3 7 Failed 47 | . 4 . . . . . 5 3 . . . . 5 . . . . . 1 13 . 4 5 7 Catastrophic 12 | . . . . . . . . 2 . . . . 1 . . . . . . 3 . 3 1 2 Database Lockouts . | . . . . . . . . . . . . . . . . . . . . . . . . . Manual 44 | . 5 . . . 1 . 3 1 . . . . 4 . . 4 . . 4 5 1 2 2 12 Terminals 65 | . 5 . . . . . 3 1 . . . . 5 . . . . . 5 25 1 2 5 13 Fabricators 5 | . . . . . . . . . . . . . . . . . . . . . . 3 2 . Repair Stations . | . . . . . . . . . . . . . . . . . . . . . . . . . Recycling Units . | . . . . . . . . . . . . . . . . . . . . . . . . . Scanalyzers 12 | . . . . . . . 6 . . . . . 5 . . . . . . . . . . 1 Garrison Access 8 | . . . . . . . 2 2 . . . . 1 . . . . . . . . 2 1 . Terminal Hacks 55 | . . . . 2 2 . . . . . 21 . 2 . . 4 . . 4 12 1 . 2 5 Record 7 | . . . . . 1 . . . . . 6 . . . . . . . . . . . . . Part Schematic 9 | . . . . . . . . . . . 5 . . . . 4 . . . . . . . . Robot Schematic 7 | . . . . . . . . . . . 7 . . . . . . . . . . . . . Prototype ID Bank 3 | . . . . . . . . . . . 3 . . . . . . . . . . . . . Open Door 11 | . . . . 2 . . . . . . . . . . . . . . . 8 1 . . . Branch Access Points 3 | . . . . . . . . . . . . . 1 . . . . . 1 . . . 1 . Machine Index 1 | . . . . . . . . . . . . . . . . . . . 1 . . . . . Scanalyzer Index 1 | . . . . . . . . . . . . . 1 . . . . . . . . . . . Alert Level 2 | . . . . . . . . . . . . . . . . . . . . 1 . . . 1 Unreport Threat 7 | . . . . . . . . . . . . . . . . . . . . 3 . . 1 3 Security Status 1 | . . . . . . . . . . . . . . . . . . . 1 . . . . . Zone Layout 2 | . . . . . . . . . . . . . . . . . . . 1 . . . . 1 EX-Prototype ID Bank 1 | . . . . . 1 . . . . . . . . . . . . . . . . . . . Fabricator Hacks 2 | . . . . . . . . . . . . . . . . . . . . . . 2 . . Load Schematic 1 | . . . . . . . . . . . . . . . . . . . . . . 1 . . Build 1 | . . . . . . . . . . . . . . . . . . . . . . 1 . . Repair Station Hacks . | . . . . . . . . . . . . . . . . . . . . . . . . . Recycling Unit Hacks . | . . . . . . . . . . . . . . . . . . . . . . . . . Scanalyzer 7 | . . . . . . . 5 . . . . . 2 . . . . . . . . . . . Insert Component 4 | . . . . . . . 2 . . . . . 2 . . . . . . . . . . . Analyze 3 | . . . . . . . 3 . . . . . . . . . . . . . . . . . Garrison Access Hacks 3 | . . . . . . . 1 . . . . . 1 . . . . . . . . . 1 . Seal Access 3 | . . . . . . . 1 . . . . . 1 . . . . . . . . . 1 . Unauthorized Hacks 5 | . 1 . . . . . . . . . . . 1 . . . . . . . . 1 . 2 Terminals 3 | . 1 . . . . . . . . . . . 1 . . . . . . . . . . 1 Track 3 | . 1 . . . . . . . . . . . 1 . . . . . . . . . . 1 Fabricators . | . . . . . . . . . . . . . . . . . . . . . . . . . Repair Stations . | . . . . . . . . . . . . . . . . . . . . . . . . . Recycling Units . | . . . . . . . . . . . . . . . . . . . . . . . . . Scanalyzers 1 | . . . . . . . . . . . . . . . . . . . . . . . . 1 Researchers 1 | . . . . . . . . . . . . . . . . . . . . . . . . 1 Garrison Access 1 | . . . . . . . . . . . . . . . . . . . . . . 1 . . Jam 1 | . . . . . . . . . . . . . . . . . . . . . . 1 . . Data Cores Recovered . | . . . . . . . . . . . . . . . . . . . . . . . . . Used . | . . . . . . . . . . . . . . . . . . . . . . . . . Hacking Detections 32 | . 2 . . . . . 2 2 . . . . 6 . . . . . 1 6 . 4 3 6 Full Trace Events 3 | . . . . . . . . . . . . . . . . . . . . 1 . 1 1 . Feedback Events 2 | . . . . . . . . . . . . . . . . . . . . 1 . . 1 . Corruption 1 | . . . . . . . . . . . . . . . . . . . . . . . 1 . Hackware Fried 1 | . . . . . . . . . . . . . . . . . . . . 1 . . . . Feedback Blocked . | . . . . . . . . . . . . . . . . . . . . . . . . . Robot Schematics Acquired 7 | . . . . . . . . . . . 7 . . . . . . . . . . . . . Robots Built . | . . . . . . . . . . . . . . . . . . . . . . . . . Matter . | . . . . . . . . . . . . . . . . . . . . . . . . . Time . | . . . . . . . . . . . . . . . . . . . . . . . . . Total Robot Build Rating . | . . . . . . . . . . . . . . . . . . . . . . . . . Part Schematics Acquired 11 | . . . . . . . 2 . . . 5 . . . . 4 . . . . . . . . Parts Built 1 | . . . . . . . . . . . . . . . . . . . . . . 1 . . Matter 102 | . . . . . . . . . . . . . . . . . . . . . . 102 . . Time 17 | . . . . . . . . . . . . . . . . . . . . . . 17 . . Total Part Build Rating 1 | . . . . . . . . . . . . . . . . . . . . . . 1 . . Parts Repaired . | . . . . . . . . . . . . . . . . . . . . . . . . . Time . | . . . . . . . . . . . . . . . . . . . . . . . . . Parts Recycled . | . . . . . . . . . . . . . . . . . . . . . . . . . Recycled Matter . | . . . . . . . . . . . . . . . . . . . . . . . . . Retrieved Matter . | . . . . . . . . . . . . . . . . . . . . . . . . . Retrieved Components . | . . . . . . . . . . . . . . . . . . . . . . . . . Parts Scanalyzed 2 | . . . . . . . 2 . . . . . . . . . . . . . . . . . Part Schematics Acquired 2 | . . . . . . . 2 . . . . . . . . . . . . . . . . . Parts Damaged . | . . . . . . . . . . . . . . . . . . . . . . . . . Bothacking | -11 -10 -10 -9 -9 -9 -8 -8 -7 -7 -7 -7 -6 -6 -6 -6 -6 -6 -5 -5 -5 -5 -4 -3 -3 ------------ Run | Scr Mat Min Mat Min Exi Min Mat Fac Low Low Dat Pro Fac Low Low Zio Dee Pro Fac Ext Cet Fac Res Qua Used RIF Installer . | . . . . . . . . . . . . . . . . . . . . . . . . . Robots Hacked . | . . . . . . . . . . . . . . . . . . . . . . . . . Non-combat . | . . . . . . . . . . . . . . . . . . . . . . . . . Combat . | . . . . . . . . . . . . . . . . . . . . . . . . . Robot Hacks Applied . | . . . . . . . . . . . . . . . . . . . . . . . . . Relay Couplers Released . | . . . . . . . . . . . . . . . . . . . . . . . . . Robots Rewired 21 | . . . . . . . . . . . . . . 2 . . . . . 19 . . . . Allies Hacked . | . . . . . . . . . . . . . . . . . . . . . . . . . Hacks Repelled . | . . . . . . . . . . . . . . . . . . . . . . . . . Allies | -11 -10 -10 -9 -9 -9 -8 -8 -7 -7 -7 -7 -6 -6 -6 -6 -6 -6 -5 -5 -5 -5 -4 -3 -3 -------- Run | Scr Mat Min Mat Min Exi Min Mat Fac Low Low Dat Pro Fac Low Low Zio Dee Pro Fac Ext Cet Fac Res Qua Total Allies 41 | . . 2 . . . . . . . . . . . 2 . 2 . . . 30 5 . . . Largest Group 8 | . . 2 2 . . . . . . . . . . 1 1 3 3 . . 8 6 5 . . Highest-Rated Group 626 | . . 38 38 . . . . . . . . . . 30 29 91 91 . . 306 626 470 . . Highest-Rated Ally 156 | . . 31 31 . . . . . . . . . . 30 29 31 31 . . 156 156 94 . . Total Orders . | . . . . . . . . . . . . . . . . . . . . . . . . . Ally Attacks 357 | . . . 16 . . . . . . . . . . 7 1 . 76 . . 161 29 67 . . Total Damage 8224 | . . . 272 . . . . . . . . . . 196 18 . 836 . . 3456 805 2641 . . Kills 75 | . . . 7 . . . . . . . . . . . . . 12 . . 30 12 14 . . Allies Corrupted . | . . . . . . . . . . . . . . . . . . . . . . . . . Allies Melted . | . . . . . . . . . . . . . . . . . . . . . . . . . Intel | -11 -10 -10 -9 -9 -9 -8 -8 -7 -7 -7 -7 -6 -6 -6 -6 -6 -6 -5 -5 -5 -5 -4 -3 -3 ------- Run | Scr Mat Min Mat Min Exi Min Mat Fac Low Low Dat Pro Fac Low Low Zio Dee Pro Fac Ext Cet Fac Res Qua Robot Analysis Total . | . . . . . . . . . . . . . . . . . . . . . . . . . Derelict Logs Recovered 5 | . . 1 . 1 . . . . 1 1 . . . . 1 . . . . . . . . . Drone Launches . | . . . . . . . . . . . . . . . . . . . . . . . . . Drone Recoveries . | . . . . . . . . . . . . . . . . . . . . . . . . . Exploration | -11 -10 -10 -9 -9 -9 -8 -8 -7 -7 -7 -7 -6 -6 -6 -6 -6 -6 -5 -5 -5 -5 -4 -3 -3 ------------- Run | Scr Mat Min Mat Min Exi Min Mat Fac Low Low Dat Pro Fac Low Low Zio Dee Pro Fac Ext Cet Fac Res Qua Turns Passed 24207 | 73 726 682 949 558 2333 197 1029 801 884 1395 272 649 2199 581 703 1535 2435 544 671 2110 423 969 851 638 Spaces Moved 10909 | 42 371 344 453 303 1097 110 422 403 403 619 132 333 1033 282 346 740 760 193 222 856 201 438 316 490 Core 381 | 6 1 . . . . . . . . . . . . . . . . . . 2 . . . 372 Treads 10475 | 36 370 344 453 303 1097 110 422 403 403 619 132 333 1033 282 346 740 760 193 222 854 201 438 263 118 Legs 53 | . . . . . . . . . . . . . . . . . . . . . . . 53 . Wheels . | . . . . . . . . . . . . . . . . . . . . . . . . . Hover . | . . . . . . . . . . . . . . . . . . . . . . . . . Flight . | . . . . . . . . . . . . . . . . . . . . . . . . . Fastest Speed 50 | 50 150 160 180 180 160 180 180 180 180 200 180 180 180 180 185 205 205 265 223 160 160 163 160 50 Average Speed 190 | 147 159 177 180 180 181 180 199 188 211 216 191 180 187 180 197 205 239 265 250 197 179 173 180 84 Slowest Speed 1700 | 160 160 180 180 180 200 180 200 200 220 220 200 220 200 185 205 205 265 265 265 1250 180 185 210 1700 Overloaded Moves . | . . . . . . . . . . . . . . . . . . . . . . . . . Propulsion Burnouts . | . . . . . . . . . . . . . . . . . . . . . . . . . Robots Hopped . | . . . . . . . . . . . . . . . . . . . . . . . . . Cave-ins Triggered . | . . . . . . . . . . . . . . . . . . . . . . . . . Exploration Rate (%) 50 | 4 60 53 41 70 90 32 40 13 55 77 77 53 34 63 53 81 77 34 9 86 59 13 10 74 Regions Visited 24 Branch Regions 16 Pre-discovered Areas 6 | . . 1 . 1 1 . . . . 1 1 . . . 1 . . . . . . . . . Known Exits Taken 13 | . . . . . . . . 1 1 1 1 1 1 1 1 1 1 1 1 . . . 1 . Unknown Exits Taken 11 | 1 1 1 1 1 1 1 1 . . . . . . . . . . . . 1 1 1 . . Scrap Searched 14 | . . 1 . 1 . 1 . . 2 1 . 1 . 2 1 4 . . . . . . . . Spaces Dug 101 | . . . 6 . . . 1 . . . . . 23 . . . 17 32 7 . . . 9 6 Terrain Destroyed 439 | . . . 10 . 20 . 2 . 3 . . 21 51 . . . 113 106 7 2 . 85 9 10 Melee 33 | . . . . . . . . . . . . . 11 . . . . . 7 . . . 9 6 Projectile 37 | . . . . . . . 2 . . . . 1 3 . . . 4 5 . 2 . 16 . 4 AOE 369 | . . . 10 . 20 . . . 3 . . 20 37 . . . 109 101 . . . 69 . . Terrain Rammed 1 | . . . . . . . . . . . . . . 1 . . . . . . . . . . Walls Destroyed . | . . . . . . . . . . . . . . . . . . . . . . . . . Machines Disabled . | . . . . . . . . . . . . . . . . . . . . . . . . . Actions | -11 -10 -10 -9 -9 -9 -8 -8 -7 -7 -7 -7 -6 -6 -6 -6 -6 -6 -5 -5 -5 -5 -4 -3 -3 --------- Run | Scr Mat Min Mat Min Exi Min Mat Fac Low Low Dat Pro Fac Low Low Zio Dee Pro Fac Ext Cet Fac Res Qua Total 12929 | 50 441 381 539 321 1327 109 553 431 426 652 151 359 1201 318 356 756 1042 210 276 1165 234 534 495 602 Wait 416 | . 19 9 3 1 31 . 53 . . 2 . 8 55 . . 2 16 . 9 70 3 19 88 28 Move 10885 | 41 370 343 452 302 1096 109 421 402 402 618 131 332 1032 281 345 739 759 192 221 855 200 437 315 490 Hop . | . . . . . . . . . . . . . . . . . . . . . . . . . Pick Up 140 | 2 7 6 18 6 23 . 6 2 5 2 3 1 9 . 1 3 27 . 1 11 . 3 4 . Fast Attach 107 | 6 11 2 2 . 9 . 1 4 . . . . 10 1 1 . 5 . 2 12 5 12 17 7 Attach 67 | . . 2 4 . 11 . 3 1 3 4 3 4 1 2 . 1 13 . 4 5 . 2 3 1 Detach 42 | . 1 1 2 . 9 . 1 2 2 . 1 1 . . . . 9 . . 2 . 4 3 4 Swap 120 | 1 1 1 6 2 14 . 8 2 3 4 3 . 26 2 3 3 11 7 7 13 2 1 . . Drop 143 | . 2 . 13 8 32 . 9 3 2 . 5 . 20 . 1 5 9 1 . 14 7 5 5 2 Fire 572 | . 29 17 39 2 102 . 51 15 9 22 1 13 35 15 2 . 61 10 14 22 13 51 32 17 Melee 292 | . . . . . . . . . . . 1 . 12 1 3 3 132 . 16 40 4 . 28 52 Ram 2 | . . . . . . . . . . . . . . 1 . . . . . . . . . 1 Kick . | . . . . . . . . . . . . . . . . . . . . . . . . . Crush 4 | . 1 . . . . . . . . . . . 1 . . . . . 2 . . . . . Escape Stasis 10 | . . . . . . . . . . . . . . . . . . . . 10 . . . . Rewire 126 | . . . . . . . . . . . . . . 15 . . . . . 111 . . . . Trap 3 | . . . . . . . . . . . 3 . . . . . . . . . . . . . Miscellaneous . | . . . . . . . . . . . . . . . . . . . . . . . . . Route ------- -11/Scrapyard -10/Materials (discovered 3 exits: [*Mat x2] / [*Min]) -10/Mines -9/Materials -9/Mines (discovered 3 exits: *Mat x2 / *Exi) -9/Exiles -8/Mines (discovered 2 exits: *Mat x2) -8/Materials -7/Factory (discovered 2 exits: *Fac / *Low) -7/Lower Caves -7/Lower Caves (discovered 2 exits: *Fac / *Dat) -7/Data Miner -6/Proximity Caves -6/Factory (discovered 3 exits: *Fac / *Low x2) -6/Lower Caves -6/Lower Caves (discovered 2 exits: *Fac / *Zio) -6/Zion (discovered 2 exits: *Dee / [*Pro]) -6/Deep Caves -5/Proximity Caves -5/Factory (discovered 4 exits: Upp x2 / *Ext x2) -5/Extension (discovered 2 exits: *Fac / *Cet) -5/Cetus -4/Factory -3/Research (discovered 2 exits: *Qua x2) -3/Quarantine (discovered 1 exit: [*Res]) History --------- Turn | Location | Event 21 | -11/Scrapyard | Discovered new exit (range 16) 74 | -11/Scrapyard | Entered Materials 303 | -10/Materials | Build established: Mutant 377 | -10/Materials | Discovered new exit (range 12) 533 | -10/Materials | Discovered new exit (range 14) 534 | -10/Materials | Discovered new exit (range 13) 800 | -10/Materials | Entered Mines 932 | -10/Mines | Discovered new exit (range 5) 1020 | -10/Mines | Learned location of Storage (-7) 1139 | -10/Mines | Joined a pair of Derelicts in attacking an 0b10 outpost 1482 | -10/Mines | Entered Materials 1482 | -9/Materials | Accompanied by 2 allies 1482 | -9/Materials | Evolved 2 slots: Utility x2 1487 | -9/Materials | Led the pair of lost Derelicts to an unsafe place 2278 | -9/Materials | Build established: Hauler-Mutant 2379 | -9/Materials | Discovered new exit (range 16) 2431 | -9/Materials | Entered Mines 2441 | -9/Mines | Met a Derelict shopkeep closing up shop 2501 | -9/Mines | Met a Derelict bent on vengeance 2739 | -9/Mines | Discovered new exit (range 6) 2795 | -9/Mines | Met a Derelict who couldn't figure out how to use a Trap Extractor 2935 | -9/Mines | Learned location of Zion (-6) 2944 | -9/Mines | Discovered new exit (range 8) 2980 | -9/Mines | Deemed a non-threat by the Exiles lab entrance 2982 | -9/Mines | Discovered new exit (range 5) 2989 | -9/Mines | Entered Exiles 3034 | -9/Exiles | Met 8R-AWN 3063 | -9/Exiles | Met EX-HEX 3150 | -9/Exiles | Met EX-DEC 3372 | -9/Exiles | Met EX-BIN 3399 | -9/Exiles | Aligned with FarCom system 3400 | -9/Exiles | Given EX-Vault access code 3445 | -9/Exiles | Opened EX-Vault 3462 | -9/Exiles | Found Latent Energy Streamer 3499 | -9/Exiles | Warned to stay clear of 0b10 Research branches 3616 | -9/Exiles | Discovered new exit (range 11) 4000 | -9/Exiles | Build established: Mutant 4288 | -9/Exiles | Attacked by the Exiles 4471 | -9/Exiles | Destroyed 8R-AWN 4481 | -9/Exiles | Found Prototype Protection 4481 | -9/Exiles | Identified 8R-AWN's Armor/EX 4485 | -9/Exiles | Found Prototype Ballistic Gun 4485 | -9/Exiles | Identified 8R-AWN's Boregun 4488 | -9/Exiles | Found 8R-AWN's Boregun 4492 | -9/Exiles | Lost 7 parts (1p2n1u3w) 4499 | -9/Exiles | Found Prototype Device 4499 | -9/Exiles | Identified AS-neutralizer No. 17b 4509 | -9/Exiles | Found Prototype Processor 4816 | -9/Exiles | Destroyed EX-HEX 4873 | -9/Exiles | Build established: Hauler-Mutant 4919 | -9/Exiles | Destroyed EX-BIN 4982 | -9/Exiles | Destroyed EX-DEC 5322 | -9/Exiles | Entered Mines 5495 | -8/Mines | Discovered new exit (range 6) 5501 | -8/Mines | Discovered new exit (range 11) 5519 | -8/Mines | Entered Materials 5519 | -8/Materials | Evolved 2 slots: Utility x1, Weapon x1 5841 | -8/Materials | Build established: Hauler-Tank 6114 | -8/Materials | Discovered new exit (range 14) 6133 | -8/Materials | Destroyed 7 combat bots 6548 | -8/Materials | Entered Factory 6548 | -7/Factory | Evolved 2 slots: Utility x2 7009 | -7/Factory | Discovered new exit (range 3) 7013 | -7/Factory | Identified exit to Lower Caves 7133 | -7/Factory | Discovered new exit (range 6) 7142 | -7/Factory | Identified exit to Factory 7186 | -7/Factory | Build established: Scavenger-Tank 7349 | -7/Factory | Entered Lower Caves 7648 | -7/Lower Caves | Learned Factory stockpile data 7845 | -7/Lower Caves | Build established: Hauler-Tank 7933 | -7/Lower Caves | Encountered a Warlord checkpoint 8206 | -7/Lower Caves | Discovered new exit (range 13) 8230 | -7/Lower Caves | Identified exit to Lower Caves 8233 | -7/Lower Caves | Entered another Lower Caves area 8251 | -7/Lower Caves | Discovered exit to Factory (range 15) 8645 | -7/Lower Caves | Attracted the attention of an 0b10 checkpoint 8830 | -7/Lower Caves | Learned location of Extension (-5) 8948 | -7/Lower Caves | Build established: Hauler-Mutant 9048 | -7/Lower Caves | Discovered new exit (range 2) 9048 | -7/Lower Caves | Identified exit to Data Miner 9371 | -7/Lower Caves | Spotted B-75 Beast 9424 | -7/Lower Caves | Lost 3 parts (1n1u1w) 9628 | -7/Lower Caves | Entered Data Miner 9628 | -7/Data Miner | Discovered new exit (range 6) 9666 | -7/Data Miner | Met Data Miner 9700 | -7/Data Miner | Learned location of Section 7 (-2) 9700 | -7/Data Miner | Acquired the access code to Warlord's prototype stash 9712 | -7/Data Miner | Identified Exp. Targeting Computer 9736 | -7/Data Miner | Received God Mode back door access code from Data Miner 9833 | -7/Data Miner | Destroyed Data Miner 9838 | -7/Data Miner | Found Prototype Hackware 9840 | -7/Data Miner | Found Prototype Hackware 9844 | -7/Data Miner | Found Prototype Hackware 9844 | -7/Data Miner | Data Conduit disabled 9898 | -7/Data Miner | Identified exit to Proximity Caves 9900 | -7/Data Miner | Entered Proximity Caves 9902 | -6/Proximity Caves | Attracted the attention of an 0b10 checkpoint 10176 | -6/Proximity Caves | Build established: Scavenger-Gunner 10522 | -6/Proximity Caves | Discovered exit to Factory (range 13) 10549 | -6/Proximity Caves | Entered Factory 10549 | -6/Factory | Evolved 2 slots: Power x1, Utility x1 10800 | -6/Factory | Identified exit to Lower Caves 10997 | -6/Factory | Identified System Mapper 11350 | -6/Factory | Build established: Scavenger-Tank 11564 | -6/Factory | Identified Deep Network Scanner 11870 | -6/Factory | Discovered new exit (range 9) 12748 | -6/Factory | Entered Lower Caves 12874 | -6/Lower Caves | Encountered a Warlord checkpoint 12888 | -6/Lower Caves | Build established: Hauler-Tank 13178 | -6/Lower Caves | Attracted the attention of an 0b10 outpost 13278 | -6/Lower Caves | Lost 4 parts (1p1n1u1w) 13303 | -6/Lower Caves | Discovered new exit (range 14) 13327 | -6/Lower Caves | Identified exit to Lower Caves 13329 | -6/Lower Caves | Entered another Lower Caves area 13329 | -6/Lower Caves | Accompanied by 1 ally 13342 | -6/Lower Caves | Discovered new exit (range 10) 13365 | -6/Lower Caves | Identified exit to Factory 13527 | -6/Lower Caves | Discovered new exit (range 15) 13551 | -6/Lower Caves | Attacked by a delusional Derelict stockpiling parts 13858 | -6/Lower Caves | Build established: Hauler-Mutant 14030 | -6/Lower Caves | Identified exit to Zion 14032 | -6/Lower Caves | Entered Zion 14032 | -6/Zion | Accompanied by 1 ally 14218 | -6/Zion | Discovered new exit (range 16) 14323 | -6/Zion | System corruption cleaned by Quarantine Array 14737 | -6/Zion | Found CR-A16's Pointy Stick 15090 | -6/Zion | Acquired unknown access codes intercepted by a Zionite 15379 | -6/Zion | Gained Derelict followers 15522 | -6/Zion | Opened final containment barrier to the Deep Caves 15557 | -6/Zion | Discovered new exit (range 3) 15557 | -6/Zion | Saw the warning signs outside the Deep Caves entrance 15563 | -6/Zion | Identified exit to Deep Caves 15567 | -6/Zion | Entered Deep Caves 15567 | -6/Deep Caves | Accompanied by 3 allies 15696 | -6/Deep Caves | Attacked by Z-Imprinter 15710 | -6/Deep Caves | Destroyed Z-Imprinter 15793 | -6/Deep Caves | Z-Facility disabled 15936 | -6/Deep Caves | Found Prototype Protection 15936 | -6/Deep Caves | Identified Zio. Weapon Casing 16025 | -6/Deep Caves | Found Prototype Protection 16025 | -6/Deep Caves | Identified Zio. Heavy Carapace 16039 | -6/Deep Caves | Found Zio. Weapon Casing 16043 | -6/Deep Caves | Found Zio. Weapon Casing 16051 | -6/Deep Caves | Found Zio. Weapon Casing 16100 | -6/Deep Caves | Found Zio. Heavy Carapace 16323 | -6/Deep Caves | Build established: Hauler-Tank 16763 | -6/Deep Caves | Discovered new exit (range 6) 16775 | -6/Deep Caves | Identified exit to Proximity Caves 16955 | -6/Deep Caves | Spotted as-64526 16992 | -6/Deep Caves | Destroyed as-64526 17018 | -6/Deep Caves | Lost 4 parts (1p1n2u) 17073 | -6/Deep Caves | Exposed GOLEM chamber 17110 | -6/Deep Caves | Found GOLEM Unit 17145 | -6/Deep Caves | Found GOLEM Unit 17201 | -6/Deep Caves | Found GOLEM Unit 17215 | -6/Deep Caves | Build established: Hauler-Mutant 17220 | -6/Deep Caves | Found GOLEM Unit 17222 | -6/Deep Caves | Triggered Deep Caves wall 17227 | -6/Deep Caves | Found GOLEM Unit 17228 | -6/Deep Caves | Spotted AS-20207 17230 | -6/Deep Caves | Spotted AS-91593 17286 | -6/Deep Caves | Destroyed AS-91593 17308 | -6/Deep Caves | Destroyed AS-20207 17347 | -6/Deep Caves | Found GOLEM Unit 17354 | -6/Deep Caves | Found GOLEM Unit 17459 | -6/Deep Caves | Found GOLEM Unit 17465 | -6/Deep Caves | Found GOLEM Unit 17473 | -6/Deep Caves | Found GOLEM Unit 17588 | -6/Deep Caves | Found GOLEM Unit 17595 | -6/Deep Caves | Found GOLEM Unit 17603 | -6/Deep Caves | Found GOLEM Unit 17651 | -6/Deep Caves | Found GOLEM Unit 17701 | -6/Deep Caves | Found GOLEM Unit 17707 | -6/Deep Caves | Found GOLEM Unit 17714 | -6/Deep Caves | Found GOLEM Unit 18002 | -6/Deep Caves | Entered Proximity Caves 18283 | -5/Proximity Caves | Build established: Hauler-Tank 18512 | -5/Proximity Caves | Discovered exit to Factory (range 14) 18546 | -5/Proximity Caves | Entered Factory 18546 | -5/Factory | Evolved 2 slots: Propulsion x1, Utility x1 18579 | -5/Factory | Identified exit to Upper Caves 18579 | -5/Factory | Identified exit to Extension 18624 | -5/Factory | Build established: Hauler-Skirmisher 19217 | -5/Factory | Entered Extension 19352 | -5/Extension | Build established: Hauler-Mutant 19382 | -5/Extension | Rescued a captive Derelict 19419 | -5/Extension | Rescued a captive Derelict 19517 | -5/Extension | Deep Network Scanner fried by hacking feedback 19530 | -5/Extension | Rescued a captive Derelict 19531 | -5/Extension | Rescued a captive Derelict 19734 | -5/Extension | Rescued a captive Derelict 19734 | -5/Extension | Rescued a captive Derelict 20049 | -5/Extension | Spotted B-75 Beast 20403 | -5/Extension | Build established: Scavenger-Mutant 20476 | -5/Extension | Spotted B-75 Beast 20507 | -5/Extension | Revealed the true nature of CR-A16's Pointy Stick 20510 | -5/Extension | Destroyed B-75 Beast 20517 | -5/Extension | Destroyed B-75 Beast 20545 | -5/Extension | Lost 7 parts (3n2u2w) 20766 | -5/Extension | Rescued a captive Derelict 20798 | -5/Extension | Rescued a captive Derelict 20802 | -5/Extension | Rescued a captive Derelict 20894 | -5/Extension | Build established: Hauler-Mutant 21043 | -5/Extension | Identified Ghost Barrier 21059 | -5/Extension | Rescued A7 21080 | -5/Extension | Rescued a captive Derelict 21169 | -5/Extension | Discovered new exit (range 10) 21171 | -5/Extension | Discovered new exit (range 6) 21317 | -5/Extension | Disrupted transfer network 21324 | -5/Extension | Build established: Scavenger-Mutant 21327 | -5/Extension | Entered Cetus 21327 | -5/Cetus | Accompanied by 1 ally (A7) 21332 | -5/Cetus | Acquired a Cetus Manufacturing Module code from A7 21354 | -5/Cetus | Spotted Cetus Guard 21354 | -5/Cetus | Spotted Cetus Guard 21356 | -5/Cetus | Spotted Cetus Guard 21359 | -5/Cetus | Allies destroyed Cetus Guard 21367 | -5/Cetus | Allies destroyed Cetus Guard 21371 | -5/Cetus | Spotted Cetus Guard 21375 | -5/Cetus | Allies destroyed Cetus Guard 21382 | -5/Cetus | Allies destroyed Cetus Guard 21510 | -5/Cetus | Started Cetus Manufacturing Module 21521 | -5/Cetus | Escorted A7 to Cetus Mainframe 21535 | -5/Cetus | Manufactured an Enhanced Grunt 21560 | -5/Cetus | Manufactured an Enhanced Grunt 21585 | -5/Cetus | Manufactured an Enhanced Grunt 21610 | -5/Cetus | Manufactured an Enhanced Grunt 21635 | -5/Cetus | Manufactured an Enhanced Grunt 21681 | -5/Cetus | Discovered new exit (range 15) 21712 | -5/Cetus | Destroyed A7 21713 | -5/Cetus | Extracted ID and sensor layout for unrecognized location from A7's data core 21750 | -5/Cetus | Entered Factory 21750 | -4/Factory | Accompanied by 5 allies 21750 | -4/Factory | Evolved 2 slots: Propulsion x1, Utility x1 22147 | -4/Factory | Fabricated Humpback (x1) 22171 | -4/Factory | Discovered new exit (range 15) 22250 | -4/Factory | First assault squad dispatched 22496 | -4/Factory | Build established: Scavenger-Tank 22595 | -4/Factory | Destroyed 8 combat bots 22719 | -4/Factory | Entered Research 22719 | -3/Research | Evolved 2 slots: Utility x1, Weapon x1 22746 | -3/Research | Lost 3 parts (1p1u1w) 22876 | -3/Research | Lost 7 parts (1n3u3w) 22905 | -3/Research | Found Fusion Bomb Launcher 23078 | -3/Research | Spotted B-86 Titan 23283 | -3/Research | Identified exit to Quarantine 23393 | -3/Research | Build established: Hacker-Golem 23570 | -3/Research | Entered Quarantine 23875 | -3/Quarantine | System corruption reached 10% 23931 | -3/Quarantine | Destroyed 7 combat bots 23996 | -3/Quarantine | Core integrity fell below 50% 24020 | -3/Quarantine | Found Alien Artifact 24020 | -3/Quarantine | Identified Stasis Generator 24024 | -3/Quarantine | Lost 15 parts (1p2n9u3w) 24127 | -3/Quarantine | Core integrity fell below 20% 24203 | -3/Quarantine | Discovered new exit (range 15) 24208 | -3/Quarantine | Destroyed by P-80 Master with Gamma Rifle Last Messages --------------- >>Layout(Zone) Retrieving Zone 4G layout... Downloaded map data. >>Trojan(Track) Trojan loaded successfully. Testing... Tracking enabled and active. 24142_ System corrupted: Energy discharge (-22). 24150_ Acquired Adv. Core Analyzer. 24152_ Connecting with Terminal... 24162_ System corrupted: Heat flow error (+154). 24162_ Acquired Unknown Hackware. 24162_ Identified Hacking Suite. 24165_ Acquired Armor Integrity Analyzer. 24184_ D2PJZKJDIFUM:LZKY ,4N1ALU,ZD6ARO:WEL7XZ 24186_ System corrupted: CR-A16's Behemoth Slayer targeting data glitched. 24194_ K-01 Serf cleans the Terminal. 24199_ G2%L%OX457L1BPBQIQ3ZP4B OC1YWU3P1IOD 24199_ K-01 Serf cleans the Terminal. 24203_ EXIT=FOUND Map ----- +----------------------------------------------------+ | ????######???????# # # #"" #? | | ????# #???????#! # # c #"T """ #? | | ????# #???????# "T" ######## #"" """ #? | | ##### #??????## #??????# #"" """ #? | | ########"#####+##########k # #? | | Rk u x ###########? | | wu #??????????? | | ^ #??????????? | | " R ^ R #??????????? | | """ ######"T######################??????????? | | """" "#??#""#???????????????????????????????? | | """ ""#??####???????????????????????????????? | | ""#?????????????????????????????????????? | | " ""#?????????????????????????????????????? | | """ ""#?????????????????????????????????????? | | """" T"#?????????????????????????????????????? | | """ ""#?????????????????????????????????????? | | ""#?????????????????????????????????????? | | ""#?????????#####???????????????????????? | | "" ""#?????????# #???????????????????????? | | """ "#?????????# pp#???????????????????????? | | "T #############p #######+#???????????????? | | """ A k #???????????????? | | "" = g < #???????????????? | | #???????????????? | | g @ #???????????????? | | ##############+#############+####???????????????? | | #??????????? ???????????????????????????????? | | #####?????? ?????????????????????????????? | | #?????# """ """ #????????????????????????????? | | #?????# """ """ #????????????????????????????? | | ""#?????# """ """ #????????????????????????????? | | ""#?????# """ """ #????????????????????????????? | | T"#?????#??"" ""??#????????????????????????????? | | ""#????????? ????????????????????????????????? | | ""#?????????###????????????????????????????????? | | #????????????????????????????????????????????? | | #####????????????????????????????????????????????? | | ?????????????????????????????????????????????????? | | ?????????????????????????????????????????????????? | | ?????????????????????????????????????????????????? | | | | | | | | | | | | | | | | | | | +----------------------------------------------------+ Best States ------------- Heat Dissipation 74 Energy Generation 45 Energy Capacity 1300 Matter Stores 300 Matter Capacity 300 Sight Range 22 Robot Scan Range 22 Terrain Scan Density 10 Armor Coverage 1400 Resistance: EX 90 Weapon Shielding 100 Evasion (%) 50 Targeting Accuracy 12 Core Analysis 10 Armor Integrity Analysis 33 Recoil Reduction 4 Particle Charging 25 Offensive Hacking 38 Defensive Hacking 20 Item Schematics ----------------- Humpback | -8/Materials | Scanalyzed Adv. EMP Blaster | -8/Materials | Scanalyzed Combat Drone Bay | -7/Data Miner | Free Lgt. Regenerative Plating | -7/Data Miner | Free Exp. Cesium-ion Thruster | -7/Data Miner | Free Exp. Terrain Scan Processor | -7/Data Miner | Free Exp. Targeting Computer | -7/Data Miner | Free Arc Thrower | -6/Zion | Free Barrage Gun | -6/Zion | Free Battle Cannon | -6/Zion | Free Slug Cannon | -6/Zion | Free Robot Schematics ------------------ S-27 Virus | -7/Data Miner | Free G-50 Soldier | -7/Data Miner | Free G-67 Veteran | -7/Data Miner | Free L-41 Fighter | -7/Data Miner | Free X-72 Disruptor | -7/Data Miner | Free H-66 Slayer | -7/Data Miner | Free I-36 Angel | -7/Data Miner | Free Fabricated ------------ Humpback | x1 | -4/Factory Alien Tech Used ----------------- Stasis Generator Achievements -------------- None Challenges ------------ None Game ------ Seed AntimissileControlLeg Manual? 0 Play Time 02:26:16 Cumulative 180.3 hours Start 2021.05.31 @ 19:30:31 End 2021.06.01 @ 20:00:50 Sessions 3 Manual Loads 0 Difficulty Rogue Special Mode None Game No. 225 Rogue 138 Adventurer 87 Explorer 0 Win Type - Total 4 Types 3/0/0/1/0/0/0/0/0 Lore% 65 Gallery% 73 Achievement% 60 Wizard Run 0 Options --------- ASCII 0 Keyboard 1 Movement Numpad Keybinds 0 Fullscreen 1 Font 18/Smallcaps Map View 76x50 Tactical HUD 1 Map Filters NONE Filters NONE Steam 1 RUN: ac41d25a-29bf-4300-ae15-069322842acc